fUST/lending_fUST_20241105
["ID","MTS","AMOUNT","RATE_DAILY","PERIOD"]
[341290709,1730742653336,-27045.41971149,0.00037,120]
[341290711,1730742653345,-151.0,0.00037,14]
[341290713,1730742653354,-1260.0,0.00037041,4]
[341290715,1730742653363,-5000.0,0.00037041,30]
[341290717,1730742653372,-1560.2660469,0.00037096,4]
[341290719,1730742653382,-2376.09,0.000371,30]
[341290721,1730742653391,-5788.82,0.000371,30]
[341290723,1730742653400,-1172.44,0.000371,30]
[341290725,1730742653410,-830.25,0.000371,30]
[341290727,1730742653419,-985.63,0.00037106,3]
[341290729,1730742653427,-1181.36,0.00037106,3]
[341290731,1730742653438,-783.0,0.0003726,2]
[341290733,1730742653447,-3281.13,0.000373,30]
[341290735,1730742653456,-153.57,0.000373,31]
[341290737,1730742653465,-153.57,0.000373,31]
[341290739,1730742653474,-153.57,0.000373,31]
[341290741,1730742653483,-153.57,0.000373,31]
[341290743,1730742653492,-153.57,0.000373,31]
[341290745,1730742653501,-153.57,0.000373,31]
[341290746,1730742653511,-153.57,0.000373,31]
[341290748,1730742653520,-153.57,0.000373,31]
[341290750,1730742653529,-153.57,0.000373,31]
[341290752,1730742653539,-153.57,0.000373,31]
[341290754,1730742653548,-153.57,0.000373,31]
[341290756,1730742653558,-153.57,0.000373,31]
[341290758,1730742653567,-153.57,0.000373,31]
[341290760,1730742653576,-153.57,0.000373,31]
[341290762,1730742653586,-153.57,0.000373,31]
[341290765,1730742653598,-153.57,0.000373,31]
[341290767,1730742653608,-153.57,0.000373,31]
[341290769,1730742653617,-153.57,0.000373,31]
[341290771,1730742653627,-153.57,0.000373,31]
[341290773,1730742653638,-153.57,0.000373,31]
[341290775,1730742653647,-223.0,0.000374,120]
[341290777,1730742653656,-5000.0,0.00037415,30]
[341290779,1730742653666,-150.82,0.000375,112]
[341290781,1730742653676,-14171.2153367,0.000375,60]
[341290784,1730742653693,-1963.0,0.000375,60]
[341290786,1730742653704,-261.35896601,0.000375,60]
[341290790,1730742653735,228.0,0.0003,2]
[341291875,1730742666348,3000.0,0.0002893,2]
[341297656,1730742726481,255.7826267,0.00028561,2]
[341298111,1730742769123,202.258324,0.00013973,2]
[341298112,1730742769341,202.258324,0.00020447,2]
[341298113,1730742769554,202.258324,0.00026921,2]
[341298115,1730742846441,160.0,0.0003,2]
[341298116,1730742866759,1134.773506,0.00029233,2]
[341298117,1730742867149,1134.773506,0.00029918,2]
[341298118,1730742892190,24900.0,0.0002912,2]
[341298119,1730743108366,194.311072,0.00028928,2]
[341298121,1730743151457,3000.0,0.00029323,2]
[341298122,1730743158143,356.839015,0.0002928,2]
[341298126,1730743365386,193.934887,0.00013973,2]
[341298130,1730743472516,937.4705281,0.0002932,2]
[341298131,1730743566647,150.0,0.00029,2]
[341298132,1730743567184,150.0,0.00026,2]
[341298133,1730743612521,378.257835,0.00029114,2]
[341298134,1730743612968,378.257835,0.00029799,2]
[341298135,1730743637150,-228.0,0.00030411,2]
[341298136,1730743637175,-378.257835,0.00030484,2]
[341298137,1730743637196,-173.17867028,0.00030687,2]
[341298138,1730743637218,-182.68,0.00030778,2]
[341298139,1730743637239,-400.0,0.00030784,2]
[341298140,1730743637261,-400.0,0.00030784,2]
[341298141,1730743637284,-359.51661189,0.00030785,2]
[341298142,1730743637304,-304.42145839,0.00030785,2]
[341298143,1730743637326,-500.0,0.00030785,2]
[341298144,1730743637346,-500.0,0.00030785,2]
[341298145,1730743637372,-500.0,0.00030785,2]
[341298146,1730743637392,-500.0,0.00030785,2]
[341298147,1730743637415,-574.56645122,0.00030785,2]
[341298148,1730743637437,-222.74523264,0.00030785,2]
[341298149,1730743638021,170.041654,0.00028837,2]
[341298150,1730743646296,-277.25476736,0.00030785,2]
[341298151,1730743646319,-83.58182871,0.00030785,2]
[341298152,1730743649528,178.419507,0.00028804,2]
[341298923,1730743831819,-171.16007024,0.00030684,2]
[341298925,1730743831829,-400.0,0.00030684,2]
[341298927,1730743831838,-400.0,0.00030684,2]
[341298929,1730743831848,-173.17867028,0.00030685,2]
[341298931,1730743831858,-4677.35494441,0.00030685,2]
[341298933,1730743831867,-500.0,0.00030783,3]
[341298935,1730743831876,-500.0,0.00030783,3]
[341298937,1730743831885,-500.63807716,0.00030784,2]
[341298939,1730743831895,-500.0,0.00030784,2]
[341298941,1730743831905,-540.76360326,0.00030784,2]
[341298943,1730743831913,-500.0,0.00030784,2]
[341298945,1730743831922,-500.0,0.00030784,2]
[341298947,1730743831931,-500.0,0.00030784,2]
[341298949,1730743831941,-500.0,0.00030784,2]
[341298951,1730743831951,-500.0,0.00030784,2]
[341298953,1730743831960,-500.0,0.00030784,2]
[341298955,1730743831970,-446.45966177,0.00030784,2]
[341298957,1730743831979,-500.0,0.00030784,2]
[341298959,1730743831988,-500.0,0.00030784,2]
[341298961,1730743831997,-500.0,0.00030784,2]
[341298963,1730743832006,-417.64543609,0.00030784,2]
[341298965,1730743832016,-500.0,0.00030784,2]
[341298967,1730743832025,-500.0,0.00030784,2]
[341298969,1730743832035,-500.0,0.00030784,2]
[341298971,1730743832044,-500.0,0.00030784,2]
[341298973,1730743832053,-500.0,0.00030784,2]
[341298975,1730743832064,-500.0,0.00030784,2]
[341298977,1730743832078,-588.602818,0.00030784,2]
[341298979,1730743832087,-500.0,0.00030784,2]
[341298981,1730743832096,-500.0,0.00030784,2]
[341298983,1730743832105,-500.0,0.00030784,2]
[341298985,1730743832114,-500.0,0.00030784,2]
[341298987,1730743832123,-500.0,0.00030784,2]
[341298989,1730743832133,-500.0,0.00030784,2]
[341298991,1730743832143,-500.0,0.00030784,2]
[341298993,1730743832152,-500.0,0.00030784,2]
[341298995,1730743832161,-500.0,0.00030784,2]
[341298997,1730743832170,-500.0,0.00030784,2]
[341298999,1730743832180,-500.0,0.00030784,2]
[341299001,1730743832189,-500.0,0.00030784,2]
[341299003,1730743832199,-500.0,0.00030784,2]
[341299005,1730743832208,-500.0,0.00030784,2]
[341299007,1730743832217,-500.0,0.00030784,2]
[341299009,1730743832226,-500.0,0.00030784,2]
[341299011,1730743832239,-500.0,0.00030784,2]
[341299013,1730743832247,-500.0,0.00030784,2]
[341299015,1730743832257,-500.0,0.00030784,2]
[341299017,1730743832266,-500.0,0.00030784,2]
[341299019,1730743832274,-500.0,0.00030784,2]
[341299021,1730743832283,-274.77635416,0.00030784,2]
[341299023,1730743832292,-500.0,0.00030784,2]
[341299025,1730743832302,-500.0,0.00030784,2]
[341299026,1730743832313,-500.0,0.00030784,2]
[341299028,1730743832322,-500.0,0.00030784,2]
[341299030,1730743832331,-500.0,0.00030784,2]
[341299032,1730743832340,-500.0,0.00030784,2]
[341299034,1730743832349,-500.0,0.00030784,2]
[341299036,1730743832360,-500.0,0.00030784,2]
[341299038,1730743832369,-500.0,0.00030784,2]
[341299040,1730743832378,-500.0,0.00030784,2]
[341299042,1730743832387,-500.0,0.00030784,2]
[341299044,1730743832397,-500.0,0.00030784,2]
[341299047,1730743832409,-391.86714606,0.00030784,2]
[341299049,1730743832419,-500.0,0.00030784,2]
[341299051,1730743832429,-500.0,0.00030784,2]
[341299053,1730743832438,-500.0,0.00030784,2]
[341299055,1730743832448,-500.0,0.00030784,2]
[341299057,1730743832458,-500.0,0.00030784,2]
[341299059,1730743832467,-500.0,0.00030784,2]
[341299061,1730743832477,-500.0,0.00030784,2]
[341299063,1730743832488,-500.0,0.00030784,2]
[341299065,1730743832498,-500.0,0.00030784,2]
[341299067,1730743832507,-500.0,0.00030784,2]
[341299069,1730743832517,-500.0,0.00030784,2]
[341299071,1730743832527,-500.0,0.00030784,2]
[341299073,1730743832536,-157.51615956,0.00030784,2]
[341299075,1730743832545,-500.0,0.00030784,2]
[341299077,1730743832554,-500.0,0.00030784,2]
[341299079,1730743832565,-500.0,0.00030784,2]
[341299081,1730743832576,-500.0,0.00030784,2]
[341299083,1730743832585,-145.65471808,0.00030784,2]
[341299085,1730743832598,-354.34528192,0.00030784,2]
[341299087,1730743832607,-500.0,0.00030784,2]
[341299089,1730743832619,-500.0,0.00030784,2]
[341299091,1730743832628,-500.0,0.00030784,2]
[341299093,1730743832637,-500.0,0.00030784,2]
[341299095,1730743832646,-500.0,0.00030784,2]
[341299097,1730743832656,-500.0,0.00030784,2]
[341299098,1730743832665,-500.0,0.00030784,2]
[341299100,1730743832674,-500.0,0.00030784,2]
[341299102,1730743832683,-202.33388542,0.00030784,2]
[341299104,1730743832691,-500.0,0.00030784,2]
[341299106,1730743832704,-500.0,0.00030784,2]
[341299108,1730743832713,-500.0,0.00030784,2]
[341299110,1730743832722,-500.0,0.00030784,2]
[341299112,1730743832732,-500.0,0.00030784,2]
[341299114,1730743832741,-500.0,0.00030784,2]
[341299116,1730743832750,-500.0,0.00030784,2]
[341299118,1730743832759,-195.24221289,0.00030784,7]
[341299119,1730743832768,-182.68,0.00030794,2]
[341299121,1730743832778,-182.68,0.00030794,2]
[341299122,1730743832787,-251.66162832,0.00030803,2]
[341299123,1730743832797,-213.09502087,0.00030803,2]
[341299124,1730743832807,-158.10963863,0.00030804,3]
[341299125,1730743832818,-407.93108845,0.00030804,3]
[341299126,1730743832827,-500.0,0.00030804,3]
[341299127,1730743832836,-500.0,0.00030804,3]
[341299128,1730743832846,-500.0,0.00030804,3]
[341299129,1730743832856,-500.0,0.00030804,3]
[341299130,1730743832865,-237.35986122,0.00030804,3]
[341299131,1730743832874,-500.0,0.00030804,3]
[341299132,1730743832883,-535.39619573,0.00030804,3]
[341299133,1730743832894,-500.0,0.00030804,3]
[341299134,1730743832903,-502.88027698,0.00030804,3]
[341299135,1730743832913,-500.0,0.00030804,3]
[341299136,1730743832922,-500.0,0.00030804,3]
[341299137,1730743832931,-500.0,0.00030804,3]
[341299138,1730743832941,-500.0,0.00030804,3]
[341299139,1730743832950,-500.0,0.00030804,3]
[341299140,1730743832960,-500.0,0.00030804,3]
[341299141,1730743832968,-500.0,0.00030804,3]
[341299142,1730743832978,-500.0,0.00030804,3]
[341299143,1730743832987,-517.28620025,0.00030804,3]
[341299144,1730743832996,-500.0,0.00030804,3]
[341299145,1730743833006,-500.0,0.00030804,3]
[341299146,1730743833015,-147.31870932,0.00030804,3]
[341299147,1730743833027,-352.68129068,0.00030804,3]
[341299148,1730743833037,-500.0,0.00030804,3]
[341299149,1730743833046,-500.0,0.00030804,3]
[341299150,1730743833055,-500.0,0.00030804,3]
[341299151,1730743833065,-415.87320354,0.00030804,3]
[341299152,1730743833074,-500.0,0.00030804,3]
[341299153,1730743833083,-634.21,0.00030804,3]
[341299154,1730743833093,-500.0,0.00030804,3]
[341299155,1730743833102,-500.0,0.00030804,3]
[341299156,1730743833111,-501.26357715,0.00030804,3]
[341299157,1730743833120,-500.0,0.00030804,3]
[341299158,1730743833130,-503.67134526,0.00030804,3]
[341299159,1730743833139,-500.0,0.00030804,3]
[341299160,1730743833148,-500.0,0.00030804,3]
[341299161,1730743833157,-500.0,0.00030804,3]
[341299162,1730743833166,-500.0,0.00030804,3]
[341299163,1730743833175,-224.31482418,0.00030804,3]
[341299164,1730743833185,-500.0,0.00030804,3]
[341299165,1730743833194,-407.68101857,0.00030804,3]
[341299166,1730743833203,-500.0,0.00030804,3]
[341299167,1730743833212,-500.0,0.00030804,3]
[341299168,1730743833222,-500.0,0.00030804,3]
[341299169,1730743833231,-500.0,0.00030804,3]
[341299170,1730743833240,-500.0,0.00030804,3]
[341299171,1730743833250,-500.0,0.00030804,3]
[341299172,1730743833259,-500.0,0.00030804,3]
[341299173,1730743833268,-500.0,0.00030804,3]
[341299174,1730743833277,-500.0,0.00030804,3]
[341299175,1730743833287,-500.0,0.00030804,3]
[341299176,1730743833296,-500.0,0.00030804,3]
[341299177,1730743833305,-500.0,0.00030804,3]
[341299178,1730743833315,-391.70958909,0.00030804,3]
[341299179,1730743833324,-500.0,0.00030804,3]
[341299180,1730743833334,-500.0,0.00030804,3]
[341299181,1730743833343,-500.0,0.00030804,3]
[341299182,1730743833352,-500.0,0.00030804,3]
[341299183,1730743833361,-500.0,0.00030804,3]
[341299184,1730743833371,-500.0,0.00030804,3]
[341299185,1730743833380,-638.70071471,0.00030804,3]
[341299186,1730743833389,-500.0,0.00030804,3]
[341299187,1730743833398,-500.0,0.00030804,3]
[341299188,1730743833411,-400.10003908,0.00030804,3]
[341299189,1730743833421,-503.17092122,0.00030804,3]
[341299190,1730743833430,-502.34180909,0.00030804,3]
[341299191,1730743833440,-500.0,0.00030804,3]
[341299192,1730743833450,-500.0,0.00030804,3]
[341299193,1730743833459,-326.15131902,0.00030804,3]
[341299201,1730743838125,-500.0,0.00030783,3]
[341299202,1730743838135,-173.84868098,0.00030804,3]
[341299203,1730743838145,-500.0,0.00030804,3]
[341299204,1730743838155,-500.0,0.00030804,3]
[341299205,1730743838165,-500.0,0.00030804,3]
[341299206,1730743838174,-500.0,0.00030804,3]
[341299207,1730743838184,-500.0,0.00030804,3]
[341299208,1730743838193,-500.0,0.00030804,3]
[341299209,1730743838202,-500.0,0.00030804,3]
[341299210,1730743838212,-500.0,0.00030804,3]
[341299211,1730743838221,-500.0,0.00030804,3]
[341299212,1730743838231,-500.0,0.00030804,3]
[341299213,1730743838241,-500.0,0.00030804,3]
[341299214,1730743838250,-500.0,0.00030804,3]
[341299215,1730743838260,-500.0,0.00030804,3]
[341299216,1730743838270,-500.0,0.00030804,3]
[341299217,1730743838280,-500.0,0.00030804,3]
[341299218,1730743838289,-500.0,0.00030804,3]
[341299219,1730743838298,-500.0,0.00030804,3]
[341299220,1730743838307,-508.40498539,0.00030804,3]
[341299221,1730743838318,-500.0,0.00030804,3]
[341299222,1730743838328,-500.0,0.00030804,3]
[341299223,1730743838338,-500.0,0.00030804,3]
[341299224,1730743838347,-500.0,0.00030804,3]
[341299225,1730743838358,-500.0,0.00030804,3]
[341299226,1730743838368,-500.0,0.00030804,3]
[341299227,1730743838378,-200.0,0.00030804,3]
[341299228,1730743838387,-500.0,0.00030804,3]
[341299229,1730743838397,-500.0,0.00030804,3]
[341299230,1730743838408,-500.0,0.00030804,3]
[341299231,1730743838418,-500.0,0.00030804,3]
[341299232,1730743838427,-500.0,0.00030804,3]
[341299233,1730743838437,-500.0,0.00030804,3]
[341299234,1730743838448,-500.0,0.00030804,3]
[341299235,1730743838459,-504.04778064,0.00030804,3]
[341299236,1730743838468,-568.35878499,0.00030804,3]
[341299237,1730743838478,-500.0,0.00030804,3]
[341299238,1730743838490,-504.81148173,0.00030804,3]
[341299239,1730743838500,-505.19247919,0.00030804,3]
[341299240,1730743838510,-500.0,0.00030804,3]
[341299241,1730743838520,-500.0,0.00030804,3]
[341299242,1730743838529,-500.0,0.00030804,3]
[341299243,1730743838539,-500.0,0.00030804,3]
[341299244,1730743838549,-200.0,0.00030804,3]
[341299245,1730743838560,-500.0,0.00030804,3]
[341299246,1730743838573,-500.0,0.00030804,3]
[341299247,1730743838582,-500.0,0.00030804,3]
[341299248,1730743838592,-500.0,0.00030804,3]
[341299249,1730743838602,-500.0,0.00030804,3]
[341299250,1730743838611,-500.0,0.00030804,3]
[341299251,1730743838621,-500.0,0.00030804,3]
[341299252,1730743838630,-500.0,0.00030804,3]
[341299253,1730743838640,-500.0,0.00030804,3]
[341299254,1730743838649,-500.0,0.00030804,3]
[341299255,1730743838659,-500.0,0.00030804,3]
[341299256,1730743838668,-500.0,0.00030804,3]
[341299257,1730743838678,-510.92587335,0.00030804,3]
[341299258,1730743838688,-500.0,0.00030804,3]
[341299259,1730743838697,-500.0,0.00030804,3]
[341299260,1730743838707,-500.0,0.00030804,3]
[341299261,1730743838717,-500.0,0.00030804,3]
[341299262,1730743838726,-500.0,0.00030804,3]
[341299263,1730743838736,-500.0,0.00030804,3]
[341299264,1730743838746,-500.0,0.00030804,2]
[341299265,1730743838756,-503.78903074,0.00030804,3]
[341299266,1730743838765,-500.0,0.00030804,3]
[341299267,1730743838775,-500.0,0.00030804,3]
[341299268,1730743838784,-500.0,0.00030804,3]
[341299269,1730743838793,-500.0,0.00030804,3]
[341299270,1730743838803,-500.0,0.00030804,3]
[341299271,1730743838813,-500.0,0.00030804,3]
[341299272,1730743838823,-503.20280102,0.00030804,3]
[341299273,1730743838832,-500.0,0.00030804,3]
[341299274,1730743838843,-592.2401475,0.00030804,3]
[341299275,1730743838853,-555.15567963,0.00030804,3]
[341299276,1730743838863,-504.37153074,0.00030804,3]
[341299277,1730743838873,-500.0,0.00030804,3]
[341299278,1730743838882,-500.0,0.00030804,3]
[341299279,1730743838892,-527.24202837,0.00030804,3]
[341299280,1730743838902,-500.0,0.00030804,3]
[341299281,1730743838912,-504.23917052,0.00030804,3]
[341299282,1730743838923,-500.0,0.00030804,3]
[341299283,1730743838934,-500.0,0.00030804,3]
[341299284,1730743838944,-500.0,0.00030804,3]
[341299285,1730743838954,-579.28,0.00030804,3]
[341299286,1730743838964,-500.0,0.00030804,3]
[341299287,1730743838973,-504.83533799,0.00030804,3]
[341299288,1730743838983,-500.0,0.00030804,3]
[341299289,1730743838992,-500.0,0.00030804,3]
[341299290,1730743839001,-512.21212522,0.00030804,3]
[341299291,1730743839011,-500.0,0.00030804,3]
[341299292,1730743839021,-500.0,0.00030804,3]
[341299293,1730743839031,-447.33902173,0.00030804,3]
[341299294,1730743839041,-500.0,0.00030804,3]
[341299295,1730743839051,-500.0,0.00030804,3]
[341299296,1730743839060,-500.0,0.00030804,3]
[341299297,1730743839071,-500.0,0.00030804,3]
[341299298,1730743839081,-500.0,0.00030804,3]
[341299299,1730743839090,-500.0,0.00030804,3]
[341299300,1730743839101,-503.41066845,0.00030804,3]
[341299301,1730743839111,-500.0,0.00030804,3]
[341299302,1730743839121,-500.0,0.00030804,3]
[341299303,1730743839131,-500.0,0.00030804,3]
[341299304,1730743839141,-500.0,0.00030804,3]
[341299305,1730743839151,-500.0,0.00030804,3]
[341299306,1730743839161,-500.0,0.00030804,3]
[341299307,1730743839170,-500.0,0.00030804,3]
[341299308,1730743839180,-500.0,0.00030804,3]
[341299309,1730743839190,-500.0,0.00030804,3]
[341299310,1730743839200,-500.0,0.00030804,3]
[341299311,1730743839210,-507.55296478,0.00030804,3]
[341299312,1730743839219,-500.0,0.00030804,3]
[341299313,1730743839230,-500.0,0.00030804,3]
[341299314,1730743839240,-500.0,0.00030804,3]
[341299315,1730743839250,-500.0,0.00030804,3]
[341299316,1730743839260,-500.0,0.00030804,3]
[341299317,1730743839270,-500.0,0.00030804,2]
[341299318,1730743839280,-500.0,0.00030804,3]
[341299319,1730743839290,-500.0,0.00030804,3]
[341299320,1730743839300,-205.18325882,0.00030804,3]
[341299332,1730743843054,-294.81674118,0.00030804,3]
[341299333,1730743843066,-500.0,0.00030804,3]
[341299334,1730743843075,-500.0,0.00030804,3]
[341299335,1730743843085,-500.0,0.00030804,3]
[341299336,1730743843095,-500.0,0.00030804,3]
[341299337,1730743843104,-500.0,0.00030804,3]
[341299338,1730743843114,-2012.58,0.00030804,3]
[341299339,1730743843123,-500.0,0.00030804,3]
[341299340,1730743843133,-500.0,0.00030804,3]
[341299341,1730743843143,-500.0,0.00030804,3]
[341299342,1730743843153,-500.0,0.00030804,3]
[341299343,1730743843163,-500.0,0.00030804,3]
[341299344,1730743843173,-500.0,0.00030804,3]
[341299345,1730743843183,-500.0,0.00030804,3]
[341299346,1730743843193,-500.0,0.00030804,3]
[341299347,1730743843202,-500.0,0.00030804,3]
[341299348,1730743843212,-254.67242796,0.00030804,3]
[341299349,1730743846005,-245.32757204,0.00030804,3]
[341299350,1730743846015,-500.0,0.00030804,3]
[341299351,1730743846025,-500.0,0.00030804,3]
[341299352,1730743846034,-500.91615239,0.00030804,3]
[341299353,1730743846124,-500.0,0.00030804,3]
[341299354,1730743846136,-500.0,0.00030804,3]
[341299355,1730743846147,-500.0,0.00030804,3]
[341299356,1730743846158,-500.0,0.00030804,3]
[341299357,1730743846168,-500.0,0.00030804,3]
[341299358,1730743846179,-500.0,0.00030804,3]
[341299359,1730743846188,-500.0,0.00030804,3]
[341299360,1730743846199,-500.0,0.00030804,3]
[341299361,1730743846209,-500.0,0.00030804,3]
[341299362,1730743846219,-500.0,0.00030804,3]
[341299363,1730743846229,-500.0,0.00030804,3]
[341299364,1730743846239,-500.0,0.00030804,3]
[341299365,1730743846249,-500.0,0.00030804,3]
[341299366,1730743846259,-545.37497093,0.00030804,3]
[341299367,1730743846269,-500.0,0.00030804,3]
[341299368,1730743846279,-500.0,0.00030804,3]
[341299369,1730743846289,-500.0,0.00030804,3]
[341299370,1730743846298,-500.0,0.00030804,3]
[341299371,1730743846308,-500.0,0.00030804,3]
[341299372,1730743846318,-500.0,0.00030804,3]
[341299373,1730743846327,-500.0,0.00030804,3]
[341299374,1730743846337,-500.0,0.00030804,3]
[341299375,1730743846347,-500.0,0.00030804,3]
[341299376,1730743846356,-500.0,0.00030804,3]
[341299377,1730743846365,-500.0,0.00030804,3]
[341299378,1730743846375,-500.0,0.00030804,3]
[341299379,1730743846385,-500.0,0.00030804,3]
[341299380,1730743846395,-500.0,0.00030804,3]
[341299381,1730743846406,-500.0,0.00030804,3]
[341299382,1730743846419,-500.0,0.00030804,3]
[341299383,1730743846428,-500.0,0.00030804,3]
[341299384,1730743846438,-500.0,0.00030804,3]
[341299385,1730743846447,-500.0,0.00030804,3]
[341299386,1730743846458,-5103.6,0.00030804,3]
[341299387,1730743846467,-500.0,0.00030804,3]
[341299388,1730743846477,-1000.0,0.00030804,3]
[341299389,1730743846486,-500.0,0.00030804,3]
[341299390,1730743846496,-500.0,0.00030804,3]
[341299391,1730743846505,-500.0,0.00030804,3]
[341299392,1730743846514,-500.0,0.00030804,3]
[341299393,1730743846524,-500.0,0.00030804,3]
[341299394,1730743846533,-500.0,0.00030804,3]
[341299395,1730743846542,-500.0,0.00030804,3]
[341299396,1730743846552,-500.0,0.00030804,3]
[341299397,1730743846562,-5000.0,0.00030804,2]
[341299398,1730743846572,-500.0,0.00030804,3]
[341299399,1730743846583,-500.0,0.00030804,3]
[341299400,1730743846592,-500.0,0.00030804,3]
[341299401,1730743846601,-500.0,0.00030804,3]
[341299402,1730743846610,-500.0,0.00030804,3]
[341299403,1730743846619,-503.17021551,0.00030804,3]
[341299404,1730743846629,-502.1795883,0.00030804,3]
[341299405,1730743846638,-500.0,0.00030804,3]
[341299406,1730743846647,-508.95096684,0.00030804,3]
[341299407,1730743846656,-500.0,0.00030804,3]
[341299408,1730743846665,-500.0,0.00030804,3]
[341299409,1730743846674,-500.0,0.00030804,3]
[341299410,1730743846683,-500.0,0.00030804,3]
[341299411,1730743846693,-500.0,0.00030804,3]
[341299412,1730743846702,-500.0,0.00030804,3]
[341299413,1730743846712,-500.0,0.00030804,3]
[341299414,1730743846722,-500.0,0.00030804,3]
[341299415,1730743846731,-500.0,0.00030804,3]
[341299416,1730743846740,-500.0,0.00030804,3]
[341299417,1730743846750,-500.0,0.00030804,3]
[341299418,1730743846759,-500.0,0.00030804,3]
[341299419,1730743846769,-500.0,0.00030804,3]
[341299420,1730743846779,-500.0,0.00030804,3]
[341299421,1730743846788,-500.0,0.00030804,3]
[341299422,1730743846797,-510.96131442,0.00030804,3]
[341299423,1730743846807,-500.0,0.00030804,3]
[341299424,1730743846816,-546.5133263,0.00030804,3]
[341299425,1730743846826,-500.0,0.00030804,3]
[341299426,1730743846835,-500.0,0.00030804,3]
[341299427,1730743846844,-500.0,0.00030804,3]
[341299428,1730743846854,-303.15,0.00030805,2]
[341299429,1730743846863,-4861.24008409,0.00030805,2]
[341299430,1730743846872,-500.86409177,0.00030873,2]
[341299431,1730743846881,-500.0,0.00030873,5]
[341299432,1730743846891,-500.0,0.00030873,5]
[341299433,1730743846900,-500.0,0.00030873,5]
[341299434,1730743846910,-559.32777849,0.00030873,5]
[341299435,1730743846920,-500.0,0.00030873,5]
[341299436,1730743846929,-159.2488376,0.00030873,5]
[341299437,1730743846939,-501.51845211,0.00030873,5]
[341299438,1730743846948,-500.0,0.00030873,5]
[341299439,1730743846957,-500.0,0.00030873,5]
[341299440,1730743846966,-430.49750175,0.00030873,5]
[341299441,1730743846976,-500.0,0.00030873,2]
[341299442,1730743846986,-501.08600131,0.00030873,5]
[341299443,1730743846995,-500.0,0.00030873,5]
[341299444,1730743847005,-464.96637804,0.00031057,3]
[341299445,1730743847016,-500.0,0.00031057,3]
[341299446,1730743847025,-105.88491322,0.00031078,3]
[341299447,1730743847038,-394.11508678,0.00031078,3]
[341299448,1730743847047,-500.0,0.00031078,3]
[341299449,1730743847056,-500.0,0.00031078,3]
[341299450,1730743847066,-500.0,0.00031078,3]
[341299451,1730743847080,-500.0,0.00031078,3]
[341299452,1730743847089,-500.0,0.00031078,3]
[341299453,1730743847100,-346.92981791,0.00031078,3]
[341299454,1730743847109,-500.0,0.00031078,3]
[341299455,1730743847118,-500.0,0.00031078,3]
[341299456,1730743847128,-500.0,0.00031078,3]
[341299457,1730743847137,-511.24732933,0.00031078,3]
[341299458,1730743847147,-500.0,0.00031078,3]
[341299459,1730743847156,-500.0,0.00031078,3]
[341299460,1730743847165,-340.65900843,0.00031078,3]
[341299461,1730743847175,-500.0,0.00031078,3]
[341299462,1730743847184,-500.0,0.00031078,3]